bitfinex-derivatives/quotes_SOLF0:USTF0_20250817
["timestamp","ask_amount","ask_price","bid_price","bid_amount"]
[1755447764116,2.87,194.17,194.13,0.03567925]
[1755447764300,3.82374903,194.16,194.13,0.03567925]
[1755447764500,2.87,194.2,194.13,0.03567925]
[1755447764701,2.87,194.18,194.13,0.03567925]
[1755447764911,8.41908615,194.17,194.13,0.03567925]
[1755447765114,3.82521369,194.16,194.13,0.03567925]
[1755447765300,8.0182,194.14,194.13,0.03567925]
[1755447765912,8.0182,194.14,194.13,2.98567925]
[1755447766712,5.1482,194.14,194.13,2.98567925]
[1755447767309,5.1492,194.1,194.09,2.60133814]
[1755447768702,7.9792,194.1,194.09,2.60133814]
[1755447768902,5.1492,194.1,194.09,2.60133814]
[1755447769315,5.1492,194.1,194.09,3.63133814]
[1755447769516,2.83,194.12,194.05,3.63133814]
[1755447770203,0.03551718,194.1,194.05,2.60133814]
[1755447770402,2.83,194.08,194.06,1.03]
[1755447771108,5.1503,194.06,194.05,3.63133814]
[1755447774012,0.03551718,194.1,194.05,4.15133814]
[1755447774315,0.03551718,194.1,194.08,2.60133814]
[1755447774511,5.1495,194.09,194.08,2.60133814]
[1755447775519,0.03317759,194.1,194.08,2.60133814]
[1755447775919,2.83,194.14,194.08,2.60133814]
[1755447776618,5.1495,194.09,194.08,2.60133814]
[1755447777418,7.9795,194.09,194.08,2.60133814]
[1755447777720,0.03267956,194.13,194.04,2.60133814]
[1755447777920,2.83,194.11,194.04,2.60133814]
[1755447778117,12.89673814,194.16,194.04,2.60133814]
[1755447778118,2.83,194.1,194.04,2.60133814]
[1755447778313,2.83,194.1,194.07,2.60133814]
[1755447778521,5.1498,194.08,194.07,2.60133814]
[1755447778726,7.9798,194.08,194.07,2.60133814]
[1755447780423,5.18431906,194.09,194.07,2.60133814]
[1755447780721,2.83,194.2,194.08,0.52]
[1755447780925,2.83,194.2,194.06,0.03529836]
[1755447780926,2.83,194.18,194.1,2.60133814]
[1755447781128,3.87866757,194.17,194.13,2.60133814]
[1755447781316,10.2929,194.21,194.13,2.60133814]
[1755447781520,2.83,194.19,194.12,2.60133814]
[1755447781720,2.83,194.17,194.12,2.60133814]
[1755447781920,5.1479,194.15,194.14,9.484e-05]
[1755447782123,7.9779,194.15,194.14,9.484e-05]
[1755447782322,2.83,194.15,194.09,2.60133814]
[1755447782626,5.1492,194.1,194.09,2.60133814]
[1755447782826,7.9792,194.1,194.09,2.60133814]
[1755447783126,5.149,194.11,194.09,2.60133814]
[1755447783314,0.03462413,194.11,194.09,2.60133814]
[1755447783520,2.86462413,194.11,194.09,2.60133814]
[1755447783720,7.9792,194.1,194.09,2.60133814]
[1755447783916,2.83,194.1,194.06,2.60133814]
[1755447784318,5.70439591,194.19,194.06,2.60133814]
[1755447784521,2.83,194.17,194.06,2.60133814]
[1755447784725,2.83,194.15,194.06,2.60133814]
[1755447784927,2.83,194.13,194.06,7.75153814]
[1755447785627,5.1496,194.09,194.06,7.75153814]
[1755447786029,7.9796,194.09,194.06,7.75153814]
[1755447786515,5.1498,194.08,194.06,2.60133814]
[1755447786718,2.83,194.1,194.06,2.60133814]
[1755447786930,2.83,194.1,193.96,346.08]
[1755447787123,5.1505,194.06,194.05,2.60133814]
[1755447789022,2.83,194.16,194.05,3.12133814]
[1755447789229,2.83,194.14,194.08,2.60133814]
[1755447789635,7.9793,194.1,194.08,2.60133814]
[1755447789830,2.83,194.09,194.08,2.60133814]
[1755447790520,7.9795,194.09,194.08,2.60133814]
[1755447790727,2.83,194.16,194.08,2.60133814]
[1755447790920,2.83,194.14,194.08,7.75103814]
[1755447791326,2.83,194.14,194.08,2.60133814]
[1755447791834,5.1495,194.09,194.08,2.60133814]
[1755447792034,7.9795,194.09,194.08,2.60133814]
[1755447792937,5.1495,194.09,194.08,2.60133814]
[1755447793236,7.9795,194.09,194.08,2.60133814]
[1755447793741,5.1495,194.09,194.08,2.60133814]
[1755447794227,2.83,194.1,194.08,2.60133814]
[1755447794433,2.83,194.11,194.08,2.60133814]
[1755447794636,2.83,194.21,194.08,2.60133814]
[1755447794835,5.1481,194.15,194.14,2.60133814]
[1755447795032,7.9781,194.15,194.14,2.60133814]
[1755447795234,2.83,194.24,194.14,2.60133814]
[1755447795437,2.83,194.22,194.17,2.60133814]
[1755447795631,2.83,194.2,194.17,2.60133814]
[1755447796133,7.9768,194.19,194.18,0.03932598]
[1755447807547,2.93,194.26,194.18,0.03932598]
[1755447807750,2.93,194.26,194.2,2.60133814]
[1755447808247,2.93,194.21,194.2,2.60133814]
[1755447809554,5.1462,194.22,194.2,2.60133814]
[1755447809750,8.0762,194.22,194.2,7.74793814]
[1755447809943,109.42803034,194.31,194.2,7.74793814]
[1755447810143,3.87192557,194.3,194.21,2.93]
[1755447810342,109.42803034,194.31,194.23,2.60133814]
[1755447810546,128.94,194.33,194.26,2.60133814]
[1755447810746,3.87002772,194.32,194.26,2.60133814]
[1755447810956,3.87002772,194.31,194.26,2.60133814]
[1755447811151,5.145,194.27,194.26,2.60133814]
[1755447811953,8.075,194.27,194.26,2.60133814]
[1755447812949,5.145,194.27,194.26,2.60133814]
[1755447813154,8.075,194.27,194.26,2.60133814]
[1755447814141,2.93,194.27,194.24,5.53133814]
[1755447814946,8.0752,194.25,194.24,5.53133814]
[1755447815156,2.93,194.28,194.24,2.60133814]
[1755447815347,2.93,194.27,194.25,2.93]
[1755447815551,8.075,194.26,194.25,2.93]
[1755447815750,2.93,194.26,194.25,2.93]
[1755447816050,2.93,194.32,194.17,2.93]
[1755447816259,2.93,194.3,194.21,2.60133814]
[1755447816447,2.93,194.3,194.21,5.53133814]
[1755447816647,5.1457,194.24,194.21,5.53133814]
[1755447816848,8.0757,194.24,194.22,2.93]
[1755447817048,8.0757,194.24,194.23,2.93]
[1755447817548,5.1459,194.23,194.21,2.60133814]
[1755447817749,5.1459,194.23,194.22,2.93]
[1755447818449,5.1456,194.24,194.22,2.93]
[1755447818650,2.93,194.23,194.22,2.93]
[1755447820655,10.2867,194.33,194.23,2.93]
[1755447820860,10.2867,194.33,194.25,2.93]
[1755447822055,10.2867,194.33,194.24,2.60133814]
[1755447822261,3.85847605,194.32,194.24,2.60133814]
[1755447822463,8.0759,194.23,194.22,5.53133814]
[1755447822857,8.0759,194.23,194.22,2.60133814]
[1755447823057,8.0762,194.22,194.21,2.60133814]
[1755447823253,8.0762,194.22,194.21,5.53133814]
[1755447823457,2.93,194.32,194.22,2.93]
[1755447823655,2.93,194.3,194.22,2.93]
[1755447823863,2.93,194.3,194.26,2.93]
[1755447824060,2.93,194.3,194.25,2.93]
[1755447824362,2.93,194.3,194.29,2.93]
[1755447825065,2.93,194.37,194.29,2.93]
[1755447825255,2.93,194.35,194.29,2.93]
[1755447825660,2.93,194.35,194.28,0.03466112]
[1755447826162,3.86049632,194.34,194.28,0.03466112]
[1755447826463,2.93,194.33,194.28,0.03466112]
[1755447827352,2.93,194.33,194.28,2.96466112]
[1755447827555,2.93,194.33,194.28,0.03466112]
[1755447828164,2.93,194.33,194.28,2.85466112]
[1755447828362,3.02,194.37,194.29,2.82]
[1755447828563,3.02,194.35,194.3,5.42133814]
[1755447828752,3.02,194.35,194.31,2.82]
[1755447829363,3.02,194.35,194.31,2.85936089]
[1755447829564,3.02,194.38,194.32,2.82]
[1755447829768,3.02,194.36,194.32,2.82]
[1755447829958,3.02,194.35,194.31,0.03936089]
[1755447830155,3.02,194.34,194.31,0.03936089]
[1755447830360,345.96,194.4,194.33,2.82]
[1755447830565,3.02,194.38,194.32,2.82]
[1755447831166,3.02,194.38,194.34,2.82]
[1755447831468,3.02,194.38,194.33,2.60133814]
[1755447831666,3.02,194.38,194.35,2.82]
[1755447831960,3.02,194.38,194.33,2.60133814]
[1755447832166,3.02,194.38,194.31,2.85936089]
[1755447832360,3.02,194.36,194.31,2.85936089]
[1755447833163,112.29501984,194.41,194.33,2.82]
[1755447833358,8.16804269,194.4,194.33,2.82]
[1755447833663,3.02,194.38,194.31,2.82]
[1755447833863,3.86082048,194.37,194.31,2.82]
[1755447834059,3.02,194.39,194.35,0.03896414]
[1755447834263,112.29501984,194.41,194.35,0.03896414]
[1755447834264,3.86111685,194.38,194.35,0.03896414]
[1755447834464,3.02,194.36,194.35,2.85896414]
[1755447835968,3.02,194.36,194.35,0.03896414]
[1755447836168,3.02,194.4,194.35,0.03896414]
[1755447836368,3.02,194.38,194.36,2.82]
[1755447836566,3.02,194.37,194.36,2.82]
[1755447837068,3.02,194.39,194.36,5.42133814]
[1755447837365,5.70439591,194.46,194.37,2.82]
[1755447837567,3.02,194.42,194.39,2.60133814]
[1755447837764,3.02,194.42,194.41,2.82]
[1755447838170,3.02,194.47,194.39,2.63486986]
[1755447838469,3.02,194.45,194.41,2.82]
[1755447839180,3.02,194.45,194.42,2.82]
[1755447839475,3.02,194.43,194.41,0.03460766]
[1755447839670,3.02,194.42,194.41,2.85460766]
[1755447840179,8.1608,194.42,194.41,0.03460766]
[1755447842275,12.02075178,194.42,194.41,7.66e-06]
[1755447847173,12.02075178,194.42,194.41,2.82000766]
[1755447847576,8.1608,194.42,194.41,2.82000766]
[1755447848368,5.1408,194.42,194.41,2.82000766]
[1755447848676,3.02,194.48,194.41,7.66e-06]
[1755447848881,3.02,194.48,194.45,2.60133814]
[1755447849072,5.1397,194.47,194.46,2.82]
[1755447849271,3.02,194.52,194.46,2.82]
[1755447849475,3.02,194.49,194.46,2.82]
[1755447849678,3.02,194.55,194.46,2.82]
[1755447849972,5.1394,194.47,194.46,2.85476847]
[1755447851484,8.1594,194.47,194.46,0.03476847]
[1755447852080,8.1594,194.47,194.46,2.85476847]
[1755447852275,5.1394,194.47,194.46,2.85476847]
[1755447852787,8.1594,194.47,194.46,0.03476847]
[1755447853285,8.1594,194.47,194.46,2.85476847]
[1755447853485,5.1394,194.47,194.46,2.85476847]
[1755447854383,8.1594,194.47,194.46,2.85476847]
[1755447854575,8.1594,194.47,194.46,0.03476847]
[1755447854777,12.00917526,194.47,194.46,0.03476847]
[1755447855686,6.86977526,194.47,194.39,2.82]
[1755447855883,3.02,194.45,194.39,2.82]
[1755447856285,3.02,194.43,194.39,2.82]
[1755447856888,3.02,194.43,194.34,9.1747168]
[1755447857188,3.02,194.41,194.33,2.82]
[1755447857987,128.44,194.45,194.33,2.82]
[1755447857988,3.84916653,194.4,194.33,2.82]
[1755447858190,2.96,194.38,194.31,2.88]
[1755447862984,2.96,194.38,194.29,5.1442]
[1755447862985,2.96,194.44,194.35,4.0319168]
[1755447863186,2.96,194.42,194.36,2.88]
[1755447866396,2.96,194.42,194.35,2.88]
[1755447866993,2.96,194.47,194.37,2.88]
[1755447867289,3.85338206,194.46,194.37,2.88]
[1755447867497,2.96,194.44,194.37,2.88]
[1755447867697,3.85449278,194.43,194.37,2.88]
[1755447867890,2.96,194.42,194.35,2.88]
[1755447872187,2.96,194.42,194.36,5.1422]
[1755447872497,0.03592791,194.4,194.37,2.88]
[1755447872900,2.96,194.39,194.35,2.88]
[1755447873101,2.96,194.38,194.35,2.88]
[1755447873507,473.94,194.48,194.35,2.88]
[1755447873698,2.96,194.46,194.35,2.88]
[1755447874003,2.96,194.44,194.35,2.88]
[1755447874200,2.96,194.42,194.35,2.88]
[1755447875103,2.96,194.44,194.39,2.88]
[1755447875502,2.96,194.43,194.39,2.88]
[1755447875691,2.96,194.47,194.39,2.88]
[1755447875895,2.96,194.45,194.39,2.88]
[1755447876104,2.96,194.43,194.39,2.88]
[1755447876305,2.96,194.43,194.4,2.88]
[1755447876494,2.96,194.45,194.41,2.88]
[1755447876697,2.96,194.43,194.42,2.88]
[1755447877608,2.96,194.45,194.42,2.88]
[1755447877797,2.96,194.44,194.43,2.88]
[1755447880602,2.96,194.44,194.41,2.59090184]
[1755447881104,2.96,194.5,194.41,2.59090184]
[1755447881301,2.96,194.48,194.41,2.59090184]
[1755447881503,2.96,194.46,194.41,2.59090184]
[1755447881707,3.86493512,194.45,194.41,2.59090184]
[1755447881908,3.86493512,194.44,194.41,2.59090184]
[1755447882207,136.67529775,194.51,194.39,2.59090184]
[1755447882408,2.96,194.49,194.39,5.47090184]
[1755447882608,2.96,194.47,194.39,5.47090184]
[1755447882803,2.96,194.45,194.39,5.47090184]
[1755447883012,2.96,194.43,194.36,5.47090184]
[1755447883205,2.96,194.41,194.37,2.88]
[1755447884611,2.96,194.41,194.36,2.88]
[1755447884812,2.96,194.41,194.37,2.88]
[1755447885007,2.96,194.41,194.36,2.88]
[1755447885606,2.96,194.41,194.37,2.88]
[1755447885806,2.96,194.39,194.35,5.47090184]
[1755447886708,2.96,194.39,194.36,2.88]
[1755447887409,15.43,194.47,194.32,2.59090184]
[1755447887410,2.96,194.37,194.32,2.59090184]
[1755447887614,2.96,194.37,194.33,2.88]
[1755447888412,2.96,194.37,194.32,5.48090184]
[1755447888606,2.96,194.37,194.34,2.89]
[1755447888804,2.75,194.43,194.33,2.89]
[1755447889002,2.75,194.41,194.33,2.89]
[1755447889203,2.75,194.39,194.33,2.89]
[1755447889403,2.75,194.39,194.32,2.59090184]
[1755447889404,2.75,194.37,194.32,2.59090184]
[1755447889601,2.75,194.43,194.33,2.89]
[1755447889806,2.75,194.41,194.33,2.89]
[1755447890013,2.75,194.39,194.33,2.89]
[1755447890212,2.75,194.37,194.34,2.89]
[1755447890604,2.75,194.43,194.34,2.89]
[1755447890808,2.75,194.41,194.34,2.89]
[1755447891009,2.75,194.39,194.34,2.89]
[1755447891214,2.75,194.37,194.34,2.89]
[1755447892119,15.43,194.44,194.31,2.59090184]
[1755447892413,2.75,194.42,194.32,2.89]
[1755447892614,2.75,194.4,194.32,2.89]
[1755447892814,11.3168377,194.39,194.32,2.89]
[1755447893118,8.56574028,194.38,194.32,2.89]
[1755447893412,2.75,194.39,194.32,2.89]
[1755447893618,2.75,194.37,194.32,2.89]
[1755447894013,15.43,194.44,194.32,2.89]
[1755447894212,2.75,194.36,194.32,2.89]
[1755447894718,2.75,194.43,194.32,2.89]
[1755447894911,2.75,194.41,194.32,2.89]
[1755447895108,2.75,194.39,194.32,2.89]
[1755447895311,2.75,194.37,194.29,2.59090184]
[1755447895512,2.75,194.35,194.3,2.89]
[1755447896011,3.8640553,194.34,194.27,2.89]
[1755447896216,2.75,194.33,194.27,2.89]
[1755447900408,15.43,194.4,194.3,2.89]
[1755447900609,2.75,194.38,194.3,2.89]
[1755447900814,2.75,194.35,194.34,2.89]
[1755447901514,8.29529775,194.44,194.34,2.89]
[1755447901515,2.75,194.43,194.34,2.89]
[1755447901721,2.75,194.43,194.31,2.89]
[1755447901722,2.75,194.41,194.31,2.89]
[1755447901921,2.75,194.39,194.31,2.89]
[1755447902123,2.75,194.37,194.31,2.89]
[1755447902314,2.75,194.35,194.31,2.89]
[1755447902513,2.75,194.42,194.33,2.59090184]
[1755447902815,8.57178101,194.41,194.34,2.89]
[1755447903120,2.75,194.44,194.39,5.48090184]
[1755447903318,3.86792168,194.43,194.42,5.48090184]
[1755447903518,2.75,194.45,194.43,2.89]
[1755447903718,5.1405,194.43,194.42,2.59090184]
[1755447903913,7.8905,194.43,194.42,2.59090184]
[1755447904115,5.1405,194.43,194.42,5.48090184]
[1755447904921,7.8905,194.43,194.42,5.48090184]
[1755447905322,5.1405,194.43,194.42,5.48090184]
[1755447905820,0.03311788,194.44,194.42,2.59090184]
[1755447906020,0.03311788,194.44,194.43,2.89]
[1755447906218,2.75,194.47,194.43,2.89]
[1755447906413,3.8714882,194.46,194.43,2.89]
[1755447906620,2.75,194.47,194.43,2.89]
[1755447906823,6.62085393,194.46,194.43,2.89]
[1755447907026,2.75,194.46,194.43,2.89]
[1755447907421,5.1402,194.44,194.43,2.89]
[1755447907621,5.1402,194.44,194.43,2.92483134]
[1755447908524,7.8902,194.44,194.43,3.134e-05]
[1755447908730,11.75915631,194.44,194.43,3.134e-05]
[1755447909627,2.75,194.4,194.34,2.59090184]
[1755447910026,5.1426,194.35,194.34,2.59090184]
[1755447910229,2.75,194.4,194.34,2.59090184]
[1755447910230,2.75,194.46,194.34,2.59090184]
[1755447910422,2.75,194.44,194.34,2.59090184]
[1755447910631,2.75,194.42,194.34,2.59090184]
[1755447910826,5.1426,194.35,194.34,2.59090184]
[1755447911331,7.8926,194.35,194.34,2.59090184]
[1755447911531,5.1434,194.32,194.31,5.48090184]
[1755447911923,7.8934,194.32,194.31,5.48090184]
[1755447912125,7.8934,194.32,194.31,2.59090184]
[1755447912325,2.75,194.32,194.29,2.89]
[1755447912526,2.75,194.31,194.29,2.89]
[1755447912832,2.75,194.42,194.29,2.89]
[1755447913032,2.75,194.4,194.29,2.89]
[1755447913235,2.75,194.38,194.27,6.92489575]
[1755447913428,2.75,194.36,194.27,6.92489575]
[1755447913730,5.70439591,194.41,194.27,6.92489575]
[1755447913731,2.75,194.34,194.27,6.92489575]
[1755447914228,2.75,194.34,194.27,2.89]
[1755447914436,2.75,194.32,194.24,2.89]
[1755447915036,2.75,194.32,194.22,6.92489575]
[1755447915338,3.86038444,194.31,194.22,6.92489575]
[1755447915633,2.75,194.32,194.22,6.92489575]
[1755447915835,2.75,194.3,194.22,6.92489575]
[1755447917232,2.75,194.3,194.22,2.89]
[1755447917537,2.75,194.28,194.2,2.89]
[1755447918733,0.03291682,194.26,194.2,2.89]
[1755447918931,2.93,194.25,194.2,2.89]
[1755447919131,2.93,194.25,194.21,3.01]
[1755447919329,2.93,194.25,194.2,3.01]
[1755447920131,0.03291682,194.26,194.2,3.01]
[1755447920631,0.03291682,194.26,194.21,3.01]
[1755447920832,2.96291682,194.26,194.21,3.01]
[1755447921439,2.93,194.25,194.21,3.01]
[1755447921932,87.18487226,194.39,194.24,3.01]
[1755447922141,2.93,194.3,194.24,3.01]
[1755447922933,2.93,194.3,194.25,5.1451]
[1755447923331,2.93,194.3,194.26,3.01]
[1755447923738,2.93,194.3,194.25,0.0328244]
[1755447923941,2.93,194.38,194.26,3.01]
[1755447924241,2.93,194.36,194.26,3.01]
[1755447924538,2.93,194.34,194.26,3.01]
[1755447924733,2.93,194.34,194.29,0.03390358]
[1755447925536,2.93,194.34,194.29,3.04390358]
[1755447925739,2.93,194.34,194.29,0.03390358]
[1755447925932,2.93,194.34,194.29,3.04390358]
[1755447927940,2.93,194.34,194.29,0.03390358]
[1755447928834,2.93,194.32,194.29,0.03390358]
[1755447939735,2.93,194.36,194.29,3.04390358]
[1755447939935,2.93,194.34,194.3,3.01]
[1755447941447,2.93,194.36,194.29,0.03390358]
[1755447941643,2.93,194.34,194.29,3.04390358]
[1755447941850,2.93,194.34,194.3,3.01]
[1755447943148,2.93,194.38,194.3,2.59518988]
[1755447943348,3.83671223,194.37,194.31,3.01]
[1755447943550,2.93,194.36,194.31,3.01]
[1755447943849,2.93,194.36,194.3,2.59518988]
[1755447944052,2.93,194.36,194.32,3.04248833]
[1755447945846,2.93,194.36,194.32,0.03248833]
[1755447948453,2.84,194.34,194.32,0.03248833]
[1755447950351,2.84,194.33,194.32,0.03248833]
[1755447953563,2.84,194.33,194.32,3.04248833]
[1755447953758,2.84,194.36,194.33,3.01]
[1755447954059,6.68904948,194.35,194.34,3.01]
[1755447955257,3.84904948,194.35,194.34,3.01]
[1755447957953,2.84,194.37,194.34,3.01]
[1755447958159,3.85868926,194.36,194.35,3.01]
[1755447958656,2.84,194.39,194.37,3.01]
[1755447958861,3.85876486,194.38,194.37,3.01]
[1755447959065,6.69876486,194.38,194.37,3.01]
[1755447959861,2.84,194.37,194.36,0.03557686]
[1755447960065,6.69876486,194.37,194.36,0.03557686]
[1755447960564,2.84,194.37,194.36,3.04557686]
[1755447963258,2.84,194.37,194.36,0.03557686]
[1755447964669,2.84,194.37,194.36,3.04557686]
[1755447966069,2.84,194.37,194.36,0.03557686]
[1755447967875,6.69499257,194.37,194.36,0.03557686]
[1755447968062,11.07984911,194.37,194.36,0.03557686]
[1755447968459,6.69499257,194.37,194.36,0.03557686]
[1755447968866,11.08059235,194.37,194.36,0.03557686]
[1755447969566,12.36673801,194.37,194.28,3.02]
[1755447969763,2.84,194.35,194.28,3.02]
[1755447969963,2.84,194.33,194.28,3.02]
[1755447970169,2.84,194.33,194.27,2.59518988]
[1755447970371,2.84,194.33,194.27,5.61518988]
[1755447970973,0.03399096,194.32,194.27,5.61518988]
[1755447971168,2.84,194.31,194.28,3.02]
[1755447971671,2.84,194.31,194.24,2.59518988]
[1755447971865,2.84,194.31,194.27,3.02]
[1755447972269,2.84,194.29,194.18,3.02]
[1755447972574,2.84,194.27,194.2,3.02]
[1755447973871,2.84,194.21,194.18,3.02]
[1755447974067,2.84,194.19,194.14,2.59518988]
[1755447974376,7.9871,194.18,194.17,3.02]
[1755447974674,2.84,194.17,194.15,3.02]
[1755447974868,2.84,194.16,194.15,3.02]
[1755447975076,0.0325406,194.19,194.15,3.02]
[1755447975375,5.1479,194.16,194.14,2.59518988]
[1755447975569,2.84,194.17,194.14,2.59518988]
[1755447975762,5.1479,194.16,194.15,3.02]
[1755447977670,8.0279,194.16,194.15,3.02]
[1755447978076,5.1479,194.15,194.14,2.59518988]
[1755447978272,8.0279,194.15,194.14,5.63518988]
[1755447979177,5.1479,194.15,194.14,5.63518988]
[1755447981677,5.1479,194.15,194.14,3.04]
[1755447981876,8.0279,194.15,194.14,2.59518988]
[1755447985583,8.0279,194.15,194.14,5.63518988]
[1755447986383,8.0279,194.15,194.14,2.59518988]
[1755447986879,10.2908,194.25,194.07,236.41559448]
[1755447987084,2.88,194.23,194.14,2.59518988]
[1755447987485,8.0279,194.15,194.14,2.59518988]
[1755447988391,8.0279,194.15,194.14,5.63518988]
[1755447992595,8.0279,194.15,194.14,2.59518988]
[1755447993187,8.0279,194.15,194.14,5.63518988]
[1755447995394,2.88,194.24,194.15,3.04]
[1755447995580,2.88,194.24,194.07,236.41559448]
[1755447995784,2.88,194.24,194.16,2.59518988]
[1755447995983,2.88,194.17,194.15,2.59518988]
[1755447996588,8.0277,194.16,194.15,2.59518988]
[1755447996790,8.0277,194.16,194.15,5.63518988]
[1755448000492,5.1477,194.16,194.15,5.63518988]
[1755448001597,2.88,194.18,194.16,3.04]
[1755448001790,2.88,194.24,194.16,3.04]
[1755448002598,8.0274,194.17,194.16,3.04]
[1755448003498,5.1472,194.18,194.16,3.04]
[1755448003686,2.88,194.24,194.16,3.04]
[1755448004093,5.1474,194.17,194.16,3.04]
[1755448004295,2.88,194.28,194.16,3.04]
[1755448004505,2.88,194.29,194.2,5.63518988]
[1755448004688,5.1462,194.22,194.21,3.04]
[1755448005085,8.0262,194.22,194.21,3.04]
[1755448005293,5.1463,194.21,194.2,2.59518988]
[1755448005492,8.0263,194.21,194.2,5.63518988]
[1755448006399,2.91436899,194.23,194.21,3.04]
[1755448006600,2.91436899,194.23,194.22,3.04]
[1755448006801,10.2883,194.3,194.22,3.04]
[1755448007098,10.2883,194.3,194.25,3.04]
[1755448007296,345.68,194.32,194.25,3.04]
[1755448007495,5.145,194.26,194.25,3.04]
[1755448008093,345.68,194.32,194.25,3.04]
[1755448008296,10.2854,194.35,194.27,2.59518988]
[1755448008495,8.22343155,194.34,194.27,5.57518988]
[1755448008696,2.89,194.32,194.27,5.57518988]
[1755448008996,2.89,194.32,194.28,2.98]
[1755448009301,2.89,194.3,194.29,0.03727446]
[1755448010297,8.0339,194.3,194.29,0.03727446]
[1755448010790,2.89,194.25,194.23,2.98]
[1755448011199,2.89,194.3,194.23,2.98]
[1755448011497,3.86745123,194.29,194.23,2.98]
[1755448011693,2.89,194.27,194.23,2.98]
[1755448011900,5.1455,194.25,194.23,2.98]
[1755448012699,5.1455,194.25,194.24,2.59518988]
[1755448013001,2.89,194.26,194.24,2.59518988]
[1755448013002,5.1451,194.26,194.24,5.57518988]
[1755448013299,2.89,194.34,194.26,2.98]
[1755448013501,10.2854,194.35,194.28,5.57518988]
[1755448013502,2.89,194.32,194.28,5.57518988]
[1755448013690,2.89,194.3,194.28,2.59518988]
[1755448013890,2.89,194.29,194.26,2.98]
[1755448014294,2.89,194.34,194.26,2.98]
[1755448014499,2.89,194.32,194.26,3.01530619]
[1755448014799,2.89,194.3,194.27,2.98]
[1755448016101,5.1445,194.28,194.27,2.98]
[1755448016299,8.0345,194.28,194.27,2.98]
[1755448016600,5.1447,194.27,194.26,0.03530619]
[1755448016803,8.0347,194.27,194.26,3.01530619]
[1755448016997,11.90809194,194.27,194.26,6.19e-06]
[1755448018295,11.90809194,194.27,194.26,2.98000619]
[1755448018495,8.0347,194.27,194.26,2.98000619]
[1755448018889,5.1447,194.27,194.26,2.98000619]
[1755448019304,8.0347,194.27,194.26,6.19e-06]
[1755448019600,5.1447,194.27,194.26,6.19e-06]
[1755448020299,5.1447,194.27,194.26,2.98000619]
[1755448020501,8.0347,194.27,194.26,2.98000619]
[1755448021705,8.0347,194.27,194.26,6.19e-06]
[1755448021900,9.0185177,194.27,194.26,6.19e-06]
[1755448022212,13.39587392,194.27,194.26,6.19e-06]
[1755448022498,13.91587392,194.27,194.26,6.19e-06]
[1755448023095,15.20277989,194.27,194.26,6.19e-06]
[1755448023506,33.22796977,194.27,194.26,6.19e-06]
[1755448023704,28.85061355,194.27,194.26,6.19e-06]
[1755448023897,33.22671007,194.27,194.26,6.19e-06]
[1755448024907,14.68152019,194.27,194.26,6.19e-06]
[1755448025108,13.39457778,194.27,194.26,6.19e-06]
[1755448025502,30.63148409,194.27,194.26,6.19e-06]
[1755448025807,33.93229607,194.27,194.12,2.98]
[1755448026005,2.59518988,194.24,194.12,2.98]
[1755448026305,5.1484,194.13,194.12,2.98]
[1755448026702,10.2917,194.23,194.12,2.59518988]
[1755448026899,2.89,194.18,194.13,2.98]